fUSD/lending_fUSD_20250103
["ID","MTS","AMOUNT","RATE_DAILY","PERIOD"]
[347510122,1735895446093,-490.75182993,9.103e-05,2]
[347510123,1735895446103,-500.0,9.103e-05,2]
[347510124,1735895446112,-500.0,9.103e-05,2]
[347510125,1735895446122,-500.0,9.103e-05,2]
[347510126,1735895446131,-500.0,9.103e-05,2]
[347510127,1735895446141,-500.0,9.103e-05,2]
[347510128,1735895446150,-500.0,9.103e-05,2]
[347510129,1735895446161,-500.0,9.103e-05,2]
[347510130,1735895446172,-500.0,9.103e-05,2]
[347510131,1735895446181,-500.0,9.103e-05,2]
[347510132,1735895446190,-500.0,9.103e-05,2]
[347510133,1735895446200,-500.0,9.103e-05,2]
[347510134,1735895446211,-500.0,9.103e-05,2]
[347510135,1735895446221,-500.0,9.103e-05,2]
[347510136,1735895446231,-626.46971145,9.103e-05,2]
[347510137,1735895446245,-500.0,9.103e-05,2]
[347510138,1735895446254,-500.0,9.103e-05,2]
[347510139,1735895446264,-500.0,9.103e-05,2]
[347510140,1735895446273,-500.0,9.103e-05,2]
[347510141,1735895446283,-500.0,9.103e-05,2]
[347510142,1735895446292,-500.0,9.103e-05,2]
[347510143,1735895446302,-500.0,9.103e-05,2]
[347510144,1735895446311,-500.0,9.103e-05,2]
[347510145,1735895446320,-500.0,9.103e-05,2]
[347510146,1735895446331,-500.0,9.103e-05,2]
[347510147,1735895446340,-500.0,9.103e-05,2]
[347510148,1735895446348,-500.0,9.103e-05,2]
[347510149,1735895446358,-500.0,9.103e-05,2]
[347510150,1735895446367,-264.94621396,9.103e-05,2]
[347510151,1735895446376,-500.0,9.103e-05,2]
[347510152,1735895446386,-500.0,9.103e-05,2]
[347510153,1735895446395,-500.0,9.103e-05,2]
[347510154,1735895446404,-500.0,9.103e-05,2]
[347510155,1735895446413,-500.0,9.103e-05,2]
[347510156,1735895446423,-500.0,9.103e-05,2]
[347510157,1735895446432,-500.0,9.103e-05,2]
[347510158,1735895446442,-500.0,9.103e-05,2]
[347510159,1735895446451,-500.0,9.103e-05,2]
[347510160,1735895446460,-500.0,9.103e-05,2]
[347510161,1735895446470,-500.0,9.103e-05,2]
[347510162,1735895446479,-500.0,9.103e-05,2]
[347510163,1735895446489,-500.0,9.103e-05,2]
[347510164,1735895446498,-829.37,9.103e-05,2]
[347510165,1735895446508,-500.0,9.103e-05,2]
[347510166,1735895446518,-500.0,9.103e-05,2]
[347510167,1735895446528,-500.0,9.103e-05,2]
[347510168,1735895446538,-500.0,9.103e-05,2]
[347510169,1735895446547,-500.0,9.103e-05,2]
[347510170,1735895446557,-500.0,9.103e-05,2]
[347510172,1735895446566,-685.14,9.103e-05,2]
[347510173,1735895446575,-1027.37,9.103e-05,2]
[347510175,1735895446584,-300.0,9.103e-05,2]
[347510177,1735895446593,-500.0,9.103e-05,2]
[347510178,1735895446602,-629.97,9.103e-05,2]
[347510180,1735895446612,-500.0,9.103e-05,2]
[347510181,1735895446622,-500.0,9.103e-05,2]
[347510182,1735895446632,-1638.06,9.103e-05,2]
[347510183,1735895446641,-519.21492947,9.103e-05,2]
[347510184,1735895446651,-500.0,9.103e-05,2]
[347510185,1735895446660,-500.0,9.103e-05,2]
[347510186,1735895446669,-500.0,9.103e-05,2]
[347510187,1735895446678,-500.0,9.103e-05,2]
[347510188,1735895446687,-715.61,9.103e-05,2]
[347510189,1735895446698,-500.0,9.103e-05,2]
[347510190,1735895446707,-500.0,9.103e-05,2]
[347510191,1735895446716,-500.0,9.103e-05,2]
[347510192,1735895446725,-500.0,9.103e-05,2]
[347510193,1735895446734,-500.0,9.103e-05,2]
[347510194,1735895446744,-500.0,9.103e-05,2]
[347510195,1735895446753,-500.0,9.103e-05,2]
[347510196,1735895446763,-500.0,9.103e-05,2]
[347510197,1735895446772,-600.24,9.103e-05,2]
[347510198,1735895446781,-500.0,9.103e-05,2]
[347510199,1735895446790,-500.0,9.103e-05,2]
[347510200,1735895446799,-999.73,9.103e-05,2]
[347510201,1735895446810,-500.0,9.103e-05,2]
[347510202,1735895446819,-596.25,9.103e-05,2]
[347510203,1735895446829,-500.0,9.103e-05,2]
[347510204,1735895446838,-545.38,9.103e-05,2]
[347510205,1735895446848,-500.0,9.103e-05,2]
[347510206,1735895446857,-500.0,9.103e-05,2]
[347510207,1735895446867,-701.23,9.103e-05,2]
[347510208,1735895446877,-500.0,9.103e-05,2]
[347510209,1735895446887,-500.0,9.103e-05,2]
[347510210,1735895446896,-500.0,9.103e-05,2]
[347510211,1735895446906,-500.0,9.103e-05,2]
[347510212,1735895446915,-960.41,9.103e-05,2]
[347510213,1735895446925,-500.0,9.103e-05,2]
[347510214,1735895446934,-500.0,9.103e-05,2]
[347510215,1735895446943,-500.0,9.103e-05,2]
[347510216,1735895446955,-500.0,9.103e-05,2]
[347510217,1735895446964,-500.0,9.103e-05,2]
[347510218,1735895446974,-522.92075163,9.103e-05,2]
[347510219,1735895446983,-1351.79,9.103e-05,2]
[347510220,1735895446992,-1481.21,9.103e-05,2]
[347510221,1735895447008,-500.0,9.103e-05,2]
[347510222,1735895447017,-500.0,9.103e-05,2]
[347510223,1735895447027,-500.0,9.103e-05,2]
[347510224,1735895447036,-500.0,9.103e-05,2]
[347510225,1735895447046,-500.0,9.103e-05,2]
[347510226,1735895447055,-1667.4,9.103e-05,2]
[347510227,1735895447064,-500.0,9.103e-05,2]
[347510228,1735895447074,-500.0,9.103e-05,2]
[347510229,1735895447083,-500.0,9.103e-05,2]
[347510230,1735895447092,-500.0,9.103e-05,2]
[347510231,1735895447101,-500.0,9.103e-05,2]
[347510232,1735895447111,-500.0,9.103e-05,2]
[347510233,1735895447120,-500.0,9.103e-05,2]
[347510234,1735895447130,-500.0,9.103e-05,2]
[347510235,1735895447139,-500.0,9.103e-05,2]
[347510236,1735895447148,-500.0,9.103e-05,2]
[347510237,1735895447158,-500.0,9.103e-05,2]
[347510238,1735895447171,-500.0,9.103e-05,2]
[347510239,1735895447180,-500.0,9.103e-05,2]
[347510240,1735895447190,-500.0,9.103e-05,2]
[347510241,1735895447200,-500.0,9.103e-05,2]
[347510242,1735895447212,-1040.92,9.103e-05,2]
[347510243,1735895447221,-500.0,9.103e-05,2]
[347510244,1735895447231,-500.0,9.103e-05,2]
[347510245,1735895447240,-708.08,9.103e-05,2]
[347510246,1735895447251,-500.0,9.103e-05,2]
[347510247,1735895447261,-500.0,9.103e-05,2]
[347510248,1735895447270,-562.14234004,9.103e-05,2]
[347510249,1735895447279,-500.0,9.103e-05,2]
[347510250,1735895447288,-500.0,9.103e-05,2]
[347510251,1735895447297,-1235.17,9.103e-05,2]
[347510252,1735895447307,-500.51378747,9.103e-05,2]
[347510253,1735895447316,-500.0,9.103e-05,2]
[347510254,1735895447325,-500.0,9.103e-05,2]
[347510255,1735895447335,-500.0,9.103e-05,2]
[347510256,1735895447344,-500.0,9.103e-05,2]
[347510257,1735895447353,-500.0,9.103e-05,2]
[347510258,1735895447362,-500.0,9.103e-05,2]
[347510259,1735895447371,-500.0,9.103e-05,2]
[347510260,1735895447380,-500.0,9.103e-05,2]
[347510261,1735895447389,-500.0,9.103e-05,2]
[347510262,1735895447399,-1066.92,9.103e-05,2]
[347510263,1735895447407,-500.0,9.103e-05,2]
[347510264,1735895447417,-500.0,9.103e-05,2]
[347510265,1735895447426,-500.0,9.103e-05,2]
[347510266,1735895447437,-1000.0,9.103e-05,2]
[347510267,1735895447446,-500.0,9.103e-05,2]
[347510268,1735895447456,-500.0,9.103e-05,2]
[347510269,1735895447465,-500.0,9.103e-05,2]
[347510270,1735895447474,-1890.16,9.103e-05,2]
[347510271,1735895447484,-500.0,9.103e-05,2]
[347510272,1735895447494,-500.0,9.103e-05,2]
[347510273,1735895447503,-1572.62,9.103e-05,2]
[347510274,1735895447513,-500.0,9.103e-05,2]
[347510275,1735895447523,-500.0,9.103e-05,2]
[347510276,1735895447532,-500.0,9.103e-05,2]
[347510277,1735895447542,-500.0,9.103e-05,2]
[347510278,1735895447552,-500.0,9.103e-05,2]
[347510279,1735895447561,-2021.58,9.103e-05,2]
[347510280,1735895447571,-500.0,9.103e-05,2]
[347510281,1735895447581,-500.0,9.103e-05,2]
[347510282,1735895447591,-500.0,9.103e-05,2]
[347510283,1735895447601,-500.0,9.103e-05,2]
[347510284,1735895447610,-2630.07,9.103e-05,2]
[347510285,1735895447620,-706.56,9.103e-05,2]
[347510286,1735895447631,-500.0,9.103e-05,2]
[347510287,1735895447641,-500.0,9.103e-05,2]
[347510288,1735895447650,-500.0,9.103e-05,2]
[347510289,1735895447660,-500.0,9.103e-05,2]
[347510290,1735895447670,-500.0,9.103e-05,2]
[347510291,1735895447678,-1925.66,9.103e-05,2]
[347510292,1735895447688,-548.9,9.103e-05,2]
[347510293,1735895447698,-500.0,9.103e-05,2]
[347510294,1735895447707,-784.1,9.103e-05,2]
[347510295,1735895447716,-500.0,9.103e-05,2]
[347510296,1735895447726,-500.0,9.103e-05,2]
[347510297,1735895447735,-500.0,9.103e-05,2]
[347510298,1735895447745,-602.8,9.103e-05,2]
[347510299,1735895447754,-500.0,9.103e-05,2]
[347510300,1735895447764,-766.75,9.103e-05,2]
[347510301,1735895447773,-1464.02,9.103e-05,2]
[347510302,1735895447782,-1219.58,9.103e-05,2]
[347510303,1735895447792,-500.0,9.103e-05,2]
[347510304,1735895447801,-500.0,9.103e-05,2]
[347510305,1735895447810,-500.0,9.103e-05,2]
[347510306,1735895447819,-760.3,9.103e-05,2]
[347510307,1735895447828,-1115.91,9.103e-05,2]
[347510308,1735895447837,-500.0,9.103e-05,2]
[347510309,1735895447847,-500.0,9.103e-05,2]
[347510310,1735895447856,-500.0,9.103e-05,2]
[347510311,1735895447865,-597.36,9.103e-05,2]
[347510312,1735895447875,-1444.75,9.103e-05,2]
[347510313,1735895447884,-1766.74,9.103e-05,2]
[347510314,1735895447893,-500.0,9.103e-05,2]
[347510315,1735895447902,-500.0,9.103e-05,2]
[347510316,1735895447911,-500.0,9.103e-05,2]
[347510317,1735895447921,-1077.09,9.103e-05,2]
[347510318,1735895447931,-1506.06,9.103e-05,2]
[347510319,1735895447941,-819.82,9.103e-05,2]
[347510320,1735895447950,-1035.07,9.103e-05,2]
[347510321,1735895447960,-500.0,9.103e-05,2]
[347510322,1735895447969,-1248.64,9.103e-05,2]
[347510323,1735895447978,-500.0,9.103e-05,2]
[347510324,1735895447987,-1084.63,9.103e-05,2]
[347510325,1735895447997,-500.0,9.103e-05,2]
[347510326,1735895448006,-2008.65,9.103e-05,2]
[347510327,1735895448016,-500.0,9.103e-05,2]
[347510328,1735895448026,-900.5,9.103e-05,2]
[347510329,1735895448035,-500.0,9.103e-05,2]
[347510330,1735895448045,-2037.23,9.103e-05,2]
[347510331,1735895448055,-1526.04,9.103e-05,2]
[347510332,1735895448064,-970.85,9.103e-05,2]
[347510333,1735895448073,-799.84,9.103e-05,2]
[347510334,1735895448082,-4190.7,9.103e-05,2]
[347510335,1735895448092,-500.0,9.103e-05,2]
[347510336,1735895448101,-2739.81,9.103e-05,2]
[347510337,1735895448111,-500.0,9.103e-05,2]
[347510338,1735895448120,-500.0,9.103e-05,2]
[347510339,1735895448130,-500.0,9.103e-05,2]
[347510340,1735895448139,-500.0,9.103e-05,2]
[347510341,1735895448149,-500.0,9.103e-05,2]
[347510342,1735895448159,-1546.01,9.103e-05,2]
[347510343,1735895448172,-500.0,9.103e-05,2]
[347510344,1735895448181,-500.0,9.103e-05,2]
[347510345,1735895448191,-3294.04,9.103e-05,2]
[347510346,1735895448201,-500.0,9.103e-05,2]
[347510347,1735895448210,-500.0,9.103e-05,2]
[347510348,1735895448220,-500.0,9.103e-05,2]
[347510349,1735895448230,-1993.8,9.103e-05,2]
[347510350,1735895448240,-500.0,9.103e-05,2]
[347510351,1735895448249,-500.0,9.103e-05,2]
[347510352,1735895448259,-500.0,9.103e-05,2]
[347510353,1735895448268,-500.0,9.103e-05,2]
[347510354,1735895448278,-500.0,9.103e-05,2]
[347510355,1735895448287,-500.0,9.103e-05,2]
[347510356,1735895448296,-542.35,9.103e-05,2]
[347510357,1735895448306,-500.0,9.103e-05,2]
[347510358,1735895448315,-576.27,9.103e-05,2]
[347510359,1735895448323,-636.34,9.103e-05,2]
[347510360,1735895448332,-1185.55,9.103e-05,2]
[347510361,1735895448342,-500.0,9.103e-05,2]
[347510362,1735895448351,-500.0,9.103e-05,2]
[347510363,1735895448360,-500.0,9.103e-05,2]
[347510364,1735895448370,-2123.33,9.103e-05,2]
[347510365,1735895448379,-2128.48,9.103e-05,2]
[347510366,1735895448388,-500.0,9.103e-05,2]
[347510367,1735895448398,-500.0,9.103e-05,2]
[347510368,1735895448407,-500.0,9.103e-05,2]
[347510369,1735895448416,-500.0,9.103e-05,2]
[347510370,1735895448425,-500.0,9.103e-05,2]
[347510371,1735895448435,-500.0,9.103e-05,2]
[347510372,1735895448443,-500.0,9.103e-05,2]
[347510373,1735895448453,-629.74,9.103e-05,2]
[347510374,1735895448462,-500.0,9.103e-05,2]
[347510375,1735895448471,-536.08,9.103e-05,2]
[347510376,1735895448481,-1086.04,9.103e-05,2]
[347510377,1735895448490,-1817.7,9.103e-05,2]
[347510378,1735895448499,-509.98,9.103e-05,2]
[347510379,1735895448508,-500.0,9.103e-05,2]
[347510380,1735895448518,-670.75,9.103e-05,2]
[347510381,1735895448527,-2088.59,9.103e-05,2]
[347510382,1735895448536,-500.0,9.103e-05,2]
[347510383,1735895448546,-500.0,9.103e-05,2]
[347510384,1735895448555,-790.21,9.103e-05,2]
[347510385,1735895448564,-500.0,9.103e-05,2]
[347510386,1735895448573,-500.0,9.103e-05,2]
[347510387,1735895448583,-1771.8,9.103e-05,2]
[347510388,1735895448592,-1095.49,9.103e-05,2]
[347510389,1735895448601,-1318.89,9.103e-05,2]
[347510390,1735895448610,-500.0,9.103e-05,2]
[347510391,1735895448620,-500.0,9.103e-05,2]
[347510392,1735895448629,-752.78,9.103e-05,2]
[347510393,1735895448638,-500.0,9.103e-05,2]
[347510394,1735895448647,-830.78,9.103e-05,2]
[347510395,1735895448657,-1862.76,9.103e-05,2]
[347510396,1735895448666,-500.0,9.103e-05,2]
[347510397,1735895448675,-500.0,9.103e-05,2]
[347510398,1735895448684,-547.21,9.103e-05,2]
[347510399,1735895448694,-500.0,9.103e-05,2]
[347510400,1735895448707,-500.0,9.103e-05,2]
[347510401,1735895448716,-500.0,9.103e-05,2]
[347510402,1735895448726,-500.0,9.103e-05,2]
[347510403,1735895448735,-1228.04,9.103e-05,2]
[347510404,1735895448745,-500.0,9.103e-05,2]
[347510405,1735895448757,-3209.82,9.103e-05,2]
[347510406,1735895448769,-500.0,9.103e-05,2]
[347510407,1735895448778,-500.0,9.103e-05,2]
[347510408,1735895448788,-500.0,9.103e-05,2]
[347510409,1735895448797,-500.0,9.103e-05,2]
[347510410,1735895448807,-2244.82,9.103e-05,2]
[347510411,1735895448817,-675.86,9.103e-05,2]
[347510412,1735895448827,-500.0,9.103e-05,2]
[347510413,1735895448837,-500.0,9.103e-05,2]
[347510414,1735895448846,-500.0,9.103e-05,2]
[347510415,1735895448856,-603.95,9.103e-05,2]
[347510416,1735895449103,-1071.58,9.103e-05,2]
[347510417,1735895449114,-500.0,9.103e-05,2]
[347510418,1735895449123,-559.48,9.103e-05,2]
[347510419,1735895449133,-797.46,9.103e-05,2]
[347510420,1735895449143,-500.0,9.103e-05,2]
[347510421,1735895449152,-500.0,9.103e-05,2]
[347510422,1735895449164,-500.0,9.103e-05,2]
[347510423,1735895449174,-500.0,9.103e-05,2]
[347510424,1735895449183,-1858.78,9.103e-05,2]
[347510425,1735895449193,-589.59,9.103e-05,2]
[347510426,1735895449203,-500.0,9.103e-05,2]
[347510427,1735895449213,-500.0,9.103e-05,2]
[347510428,1735895449224,-500.0,9.103e-05,2]
[347510429,1735895449233,-1496.62,9.103e-05,2]
[347510430,1735895449246,-518.64297093,9.103e-05,2]
[347510431,1735895449256,-1000.52,9.103e-05,2]
[347510432,1735895449266,-500.0,9.103e-05,2]
[347510433,1735895449276,-1105.66,9.103e-05,2]
[347510434,1735895449286,-500.0,9.103e-05,2]
[347510435,1735895449295,-2890.2,9.103e-05,2]
[347510436,1735895449305,-502.88513637,9.103e-05,2]
[347510437,1735895449315,-500.0,9.103e-05,2]
[347510438,1735895449325,-3098.25,9.103e-05,2]
[347510439,1735895449335,-159.93465984,9.103e-05,2]
[347510440,1735895449345,-3098.25,9.103e-05,2]
[347510441,1735895449355,-500.0,9.103e-05,2]
[347510442,1735895449365,-724.51,9.103e-05,2]
[347510443,1735895449375,-500.0,9.103e-05,2]
[347510444,1735895449385,-602.18,9.103e-05,2]
[347510445,1735895449394,-500.0,9.103e-05,2]
[347510446,1735895449404,-500.0,9.103e-05,2]
[347510447,1735895449413,-500.0,9.103e-05,2]
[347510448,1735895449423,-2019.58,9.103e-05,2]
[347510449,1735895449433,-500.0,9.103e-05,2]
[347510450,1735895449443,-815.64,9.103e-05,2]
[347510451,1735895449453,-500.0,9.103e-05,2]
[347510452,1735895449463,-500.0,9.103e-05,2]
[347510453,1735895449473,-600.9,9.103e-05,2]
[347510454,1735895449482,-500.0,9.103e-05,2]
[347510455,1735895449492,-500.0,9.103e-05,2]
[347510456,1735895449502,-500.0,9.103e-05,2]
[347510457,1735895449512,-500.0,9.103e-05,2]
[347510458,1735895449521,-500.0,9.103e-05,2]
[347510459,1735895449530,-588.0,9.103e-05,2]
[347510460,1735895449539,-500.0,9.103e-05,2]
[347510461,1735895449549,-3014.68,9.103e-05,2]
[347510462,1735895449559,-500.0,9.103e-05,2]
[347510463,1735895449569,-500.0,9.103e-05,2]
[347510464,1735895449579,-500.0,9.103e-05,2]
[347510465,1735895449589,-500.0,9.103e-05,2]
[347510466,1735895449599,-1418.1,9.103e-05,2]
[347510467,1735895449609,-538.32368135,9.103e-05,2]
[347510468,1735895449619,-518.55,9.103e-05,2]
[347510469,1735895449628,-1298.29,9.103e-05,2]
[347510470,1735895449638,-1812.76,9.103e-05,2]
[347510471,1735895449648,-500.0,9.103e-05,2]
[347510472,1735895449657,-500.0,9.103e-05,2]
[347510473,1735895449667,-500.0,9.103e-05,2]
[347510474,1735895449677,-1282.15,9.103e-05,2]
[347510475,1735895449687,-500.0,9.103e-05,2]
[347510476,1735895449697,-500.0,9.103e-05,2]
[347510477,1735895449707,-500.0,9.103e-05,2]
[347510478,1735895449717,-500.0,9.103e-05,2]
[347510479,1735895449726,-3424.08,9.103e-05,2]
[347510480,1735895449736,-1954.12,9.103e-05,2]
[347510481,1735895449745,-876.5,9.103e-05,2]
[347510482,1735895449755,-2098.9,9.103e-05,2]
[347510483,1735895449764,-500.0,9.103e-05,2]
[347510484,1735895449774,-500.0,9.103e-05,2]
[347510485,1735895449783,-1613.49,9.103e-05,2]
[347510486,1735895449793,-500.0,9.103e-05,2]
[347510487,1735895449802,-500.0,9.103e-05,2]
[347510488,1735895449811,-2012.73,9.103e-05,2]
[347510489,1735895449821,-500.0,9.103e-05,2]
[347510490,1735895449831,-500.0,9.103e-05,2]
[347510491,1735895449840,-821.96,9.103e-05,2]
[347510492,1735895449850,-500.0,9.103e-05,2]
[347510493,1735895449859,-500.0,9.103e-05,2]
[347510494,1735895449869,-500.0,9.103e-05,2]
[347510495,1735895449878,-500.0,9.103e-05,2]
[347510496,1735895449888,-500.0,9.103e-05,2]
[347510497,1735895449899,-1599.57,9.103e-05,2]
[347510498,1735895449909,-502.15532186,9.103e-05,2]
[347510499,1735895449919,-500.0,9.103e-05,2]
[347510500,1735895449928,-500.0,9.103e-05,2]
[347510501,1735895449937,-500.0,9.103e-05,2]
[347510502,1735895449947,-3419.0,9.103e-05,2]
[347510503,1735895449956,-500.0,9.103e-05,2]
[347510504,1735895449966,-500.0,9.103e-05,2]
[347510505,1735895449975,-500.0,9.103e-05,2]
[347510506,1735895449985,-2053.61,9.103e-05,2]
[347510507,1735895449994,-1850.24,9.103e-05,2]
[347510508,1735895450004,-500.0,9.103e-05,2]
[347510509,1735895450013,-3339.27,9.103e-05,2]
[347510510,1735895450022,-501.25576073,9.103e-05,2]
[347510511,1735895450032,-500.0,9.103e-05,2]
[347510512,1735895450042,-501.66804479,9.103e-05,2]
[347510513,1735895450052,-500.0,9.103e-05,2]
[347510514,1735895450061,-500.0,9.103e-05,2]
[347510515,1735895450071,-969.48,9.103e-05,2]
[347510516,1735895450086,-500.0,9.103e-05,2]
[347510517,1735895450096,-1532.97,9.103e-05,2]
[347510518,1735895450106,-500.0,9.103e-05,2]
[347510519,1735895450120,-500.0,9.103e-05,2]
[347510520,1735895450130,-1332.58,9.103e-05,2]
[347510521,1735895450139,-2551.07,9.103e-05,2]
[347510522,1735895450149,-746.9,9.103e-05,2]
[347510523,1735895450160,-1072.59,9.103e-05,2]
[347510524,1735895450172,-500.0,9.103e-05,2]
[347510525,1735895450182,-500.0,9.103e-05,2]
[347510526,1735895450191,-1492.24,9.103e-05,2]
[347510527,1735895450201,-2042.42,9.103e-05,2]
[347510528,1735895450210,-500.0,9.103e-05,2]
[347510529,1735895450220,-500.0,9.103e-05,2]
[347510530,1735895450230,-500.90448823,9.103e-05,2]
[347510531,1735895450239,-500.0,9.103e-05,2]
[347510532,1735895450248,-948.73,9.103e-05,2]
[347510533,1735895450258,-500.0,9.103e-05,2]
[347510534,1735895450268,-1197.67,9.103e-05,2]
[347510535,1735895450277,-920.21,9.103e-05,2]
[347510536,1735895450286,-2504.52,9.103e-05,2]
[347510537,1735895450295,-500.0,9.103e-05,2]
[347510538,1735895450305,-793.88,9.103e-05,2]
[347510539,1735895450315,-606.86,9.103e-05,2]
[347510540,1735895450324,-695.33,9.103e-05,2]
[347510541,1735895450334,-622.52,9.103e-05,2]
[347510542,1735895450343,-500.0,9.103e-05,2]
[347510543,1735895450352,-150.0,9.12e-05,2]
[347510544,1735895450362,-150.0,9.142e-05,2]
[347510545,1735895450372,-150.0,9.161e-05,2]
[347510546,1735895450382,-150.0,9.188e-05,2]
[347510547,1735895450391,-150.0,9.198e-05,2]
[347510548,1735895450401,-1000.0,9.2e-05,2]
[347510549,1735895450410,-150.0,9.203e-05,2]
[347510550,1735895450421,-82894.75815953,9.225e-05,2]
[347510551,1735895450430,-150.0,9.244e-05,2]
[347510552,1735895450440,-1000.0,9.247e-05,2]
[347510553,1735895450450,-150.0,9.254e-05,2]
[347510554,1735895450459,-4660.81,9.272e-05,2]
[347510555,1735895450469,-3911.9,9.272e-05,2]
[347510556,1735895450479,-1396.81,9.272e-05,2]
[347510557,1735895450488,-2970.17,9.272e-05,2]
[347510558,1735895450497,-3227.94,9.272e-05,2]
[347510559,1735895450507,-500.0,9.272e-05,2]
[347510560,1735895450516,-988.79,9.272e-05,2]
[347510561,1735895450525,-500.0,9.272e-05,2]
[347510562,1735895450535,-500.0,9.273e-05,2]
[347510563,1735895450544,-792.13,9.273e-05,2]
[347510564,1735895450554,-923.06,9.273e-05,2]
[347510565,1735895450564,-1019.84,9.273e-05,2]
[347510566,1735895450574,-1521.65,9.273e-05,2]
[347510567,1735895450584,-1566.31,9.273e-05,2]
[347510568,1735895450593,-500.0,9.273e-05,2]
[347510569,1735895450602,-500.0,9.273e-05,2]
[347510570,1735895450612,-500.0,9.273e-05,2]
[347510571,1735895450622,-500.0,9.273e-05,2]
[347510572,1735895450632,-521.8234233,9.273e-05,2]
[347510573,1735895450641,-827.61,9.273e-05,2]
[347510574,1735895450651,-2780.06,9.273e-05,2]
[347510575,1735895450660,-1388.72,9.273e-05,2]
[347510576,1735895450669,-500.0,9.273e-05,2]
[347510577,1735895450679,-1631.81,9.273e-05,2]
[347510578,1735895450689,-549.85,9.273e-05,2]
[347510579,1735895450700,-500.0,9.273e-05,2]
[347510580,1735895450714,-3260.82,9.273e-05,2]
[347510581,1735895450723,-1278.82,9.273e-05,2]
[347510582,1735895450733,-773.46,9.273e-05,2]
[347510583,1735895450742,-527.93,9.273e-05,2]
[347510584,1735895450754,-500.0,9.273e-05,2]
[347510585,1735895450764,-500.0,9.273e-05,2]
[347510586,1735895450774,-2789.48,9.273e-05,2]
[347510587,1735895450784,-500.0,9.273e-05,2]
[347510588,1735895450797,-500.0,9.273e-05,2]
[347510589,1735895450808,-2092.1,9.273e-05,2]
[347510590,1735895450818,-500.0,9.273e-05,2]
[347510591,1735895450830,-1357.02,9.273e-05,2]
[347510592,1735895450839,-1681.73,9.273e-05,2]
[347510593,1735895450849,-1227.07,9.273e-05,2]
[347510594,1735895450859,-500.0,9.273e-05,2]
[347510595,1735895450868,-1584.38,9.273e-05,2]
[347510596,1735895450879,-1679.44,9.273e-05,2]
[347510597,1735895450889,-500.0,9.273e-05,2]
[347510598,1735895450898,-500.0,9.273e-05,2]
[347510599,1735895450908,-500.0,9.273e-05,2]
[347510600,1735895450917,-500.0,9.273e-05,2]
[347510601,1735895450929,-791.48,9.273e-05,2]
[347510602,1735895450938,-823.55,9.273e-05,2]
[347510603,1735895450947,-711.98,9.273e-05,2]
[347510604,1735895450957,-2680.82,9.273e-05,2]
[347510605,1735895450966,-500.0,9.273e-05,2]
[347510606,1735895450976,-1240.93,9.273e-05,2]
[347510607,1735895450985,-1890.55,9.273e-05,2]
[347510608,1735895450995,-500.0,9.273e-05,2]
[347510609,1735895451004,-574.84,9.273e-05,2]
[347510610,1735895451014,-500.0,9.273e-05,2]
[347510611,1735895451024,-500.0,9.273e-05,2]
[347510612,1735895451035,-3547.46,9.273e-05,2]
[347510613,1735895451045,-500.0,9.273e-05,2]
[347510614,1735895451055,-500.0,9.273e-05,2]
[347510615,1735895451064,-500.0,9.273e-05,2]
[347510616,1735895451074,-500.0,9.273e-05,2]
[347510617,1735895451083,-500.0,9.273e-05,2]
[347510618,1735895451093,-500.0,9.273e-05,2]
[347510619,1735895451103,-3163.47,9.273e-05,2]
[347510620,1735895451113,-611.29,9.273e-05,2]
[347510621,1735895451123,-583.14,9.273e-05,2]
[347510622,1735895451132,-531.06,9.273e-05,2]
[347510623,1735895451142,-910.69,9.273e-05,2]
[347510624,1735895451151,-379.91,9.273e-05,2]
[347510625,1735895451162,-500.0,9.273e-05,2]